{"text_format":"1","workbook":"xlsx","n_sheets":2,"sheets":["Rekapitulacija","Popis"],"not_rendered":{"charts":0,"images":0,"macros":1,"external_links":0,"defined_names":2,"comments":0,"pivot_tables":0},"unopened":[],"bounds":{"document_bytes":16777216,"sheet_cells":100000,"rows_first":2000,"rows_last":500,"rows_between":2000,"halvings":0,"cell_chars":16384,"cell_head_chars":4096},"cells_cut":0,"cells_raw":0,"read":"whole","date_system":"1900"}

{"sheet":"Rekapitulacija","index":0,"n_rows":27,"n_cols":2,"rows_kept":27,"cut":false,"hidden":false,"merged":[[5,1,5,4]]}
[null,"Grad Borl / 25 maj 2021"]
[]
[]
[null,"Rekapitulacija"]
[]
[null,"Izbrani ponudnik mora pred pričetkom del:\n- mere in količine preveriti na objektu\n- izdelati delavniške načrte in jih predložiti naročniku in projektantu v potrditev\n- predložiti vzorce posameznih materialov in izdelkov v potrditev naročniku in projektantu\n- v ponudbi upoštevati izdelavo, dobavo in montažo\n- vsak izvajalec mora odpadke in embalažo, ki jo je prinesel na objekt odpeljati na trajno deponijo, pokriti mora tudi stroške eventualnih taks"]
["A.","MIZARSKA OPREMA"]
[]
[]
["B.","STOLI in MIZE"]
[]
[]
["C.","ZAVESE"]
[]
[]
["D.","USMERJENO OZNAČEVANJE"]
[]
[]
["E.","DROBNA SANITARNA OPREMA"]
[]
[]
["F.","RAZNA DELA"]
[]
[]
[null,"SKUPAJ A+B+C+D+E+F"]
[null,"DDV"]
[null,"SKUPAJ Z DDV"]

{"sheet":"Popis","index":1,"n_rows":127,"n_cols":8,"rows_kept":127,"cut":false,"hidden":false,"merged":[]}
["A.","MIZARSKA OPREMA"]
[]
[]
[1,"OPR6 - točilni pult s stekleno vitrino"]
[null,"Izdelava, dobava in montaža točilnega pulta dolžine 420 cm. Tehnološki del je iz nerjavnega jekla, v njem je pomivalni stroj in hladilni predali. Na pultu bo dvodelno korito, hlajena korita za pijačo, kavni avtomat, kavni mlin, v pultu bo predal za ostanke kavne usedline. Izbrani ponudnik mora izdelati tehnološki načrt opreme in ga predložiti v potrditev.\nPrednji del pulta je lesen od tehnološkega dvignjen za 8 cm, narejen iz križno lepljenih lesenih plošč debeline 4 cm, furnirana v bukovem furnirju, enkrat parjenem. V lesenem delu pulta so pripravljeni priključki za vodo, odtok in elektriko. V območju lesenega dela pulta je možno priključke prilagajati glede na izbrano opremo.                                                                     Tehnološki del točilnega pulta mora izbrani izvajalec uskladiti s priključki na objektu. Glej načrte in prikaze opreme. V ceni upoštevati vse aparate in priključke!"]
[null,"kosov",1,"cena / kos",null,{"$f":"C6*E6","v":0}]
[]
[2,"OPR7 - kavarniška mizica"]
[null,"Izdelava, dobava in montaža kavarniške mize velikosti fi 80 cm višine 72 cm. Plošča fi 80 cm izdelana iz križno lepljene lesene plošče debeline 20 mm, furnirana z bukovim furnirjem. \nNoge mize so kovinske narejene iz okrogle cevi fi 11 mm barvane NCS S 8005-Y 50 R . Na ploščo mize pritrjene z kovinsko ploščico. Na nogah mize plastični čepi. Glej načrte in prikaze opreme."]
[null,"kosov",7,"cena / kos",null,{"$f":"C10*E10","v":0}]
[]
[3,"OPR8 - sprejemni pult "]
[null,"Izdelava, dobava in montaža sprejemnega pulta dolžine 320 cm. narejen iz križno lepljenih lesenih plošč, furnir je bukov. Priklopna miza/pult je iz križno lepljenih plošč noge so kovinske tipske za pisarniške mize barvane RAL 9006. Nad delovnim pultom so v leseno oblogo vgrajene vtičnice in TK priključki. \nVse mere je potrebno prevriti in uskladiti na objektu. \nGlej načrte in prikaze opreme. "]
[null,"kosov",1,"cena / kos",null,{"$f":"C14*E14","v":0}]
[]
[4,"OPR9 - pisalna miza za kustose"]
[null,"Izdelava, dobava in montaža mize za kustose in regala ob mizi. Miza dim. 200x80x72 cm. Plošča iveral debeline 2 cm, barva izgled bukovega furnirja. Noge so kovinske sistemske, barva RAL 9006. \nPriklopna omara/regal dim. 300x55 cm, globine 50 cm, narejena iz iverala, barva izgled bukovega furnirja. V notranjosti so fiksne police debeline 2 cm. Vse mere je potrebno prevriti in uskladiti na objektu. "]
[null,"kosov",2,"cena / kos",null,{"$f":"C18*E18","v":0}]
[]
[5,"OPR10 - pisarniške omare"]
[null,"Izdelava, dobava in montaža omare dim.164x190x45 cm, vgrajena v gradbeno nišo. \nObod celotne omare je iz iverala debeline 2 cm. Krila omar in notranje police so prav tako iz iverala debeline 2 cm,  barva izgled bukovega furnirja. \nEn del omare je namenjen garderobi v ostalih so prestavljive police.Vse krila omar se zaklepajo. Dimenzije je potrebno pred izdelavo omare preveriti na objektu.\n"]
[null,"kosov",1,"cena / kos",null,{"$f":"C22*E22","v":0}]
[]
[6,"OPR10a - pisarniške omare"]
[null,"Izdelava, dobava in montaža omare dim.278x190x45 cm, vgrajena v gradbeno nišo. Dimenzije je potrebno pred izdelavo omare preveriti na objektu.\nObod celotne omare je iz iverala debeline 2 cm. Krila omar in notranje police so prav tako iz iverala debeline 2 cm, barva izgled bukovega furnirja. \nV notranjosti omere so prestavljive police. Vse krila omar se zaklepajo. Dimenzije je potrebno pred izdelavo omare preveriti na objektu.\n"]
[null,"kosov",1,"cena / kos",null,{"$f":"C26*E26","v":0}]
[]
[7,"OPR11 - pisarniška vitrina"]
[null,"Izdelava, dobava in montaža omare dim.207x114x45 cm. Obod celotne omare je iz iverala debeline 2 cm. Prestavljive police so  iz iveraladebeline 2 cm, barva izgled bukovega furnirja. \nKrila omare so prosojno steklo v aluminijastem okvirju. Ročaj omare je čep pritrjen na okvir vrat. Dimenzije je potrebno pred izdelavo omare preveriti na objektu.\n"]
[null,"kosov",1,"cena / kos",null,{"$f":"C30*E30","v":0}]
[]
[8,"OPR12 - obešalnik za garderobo"]
[null,"Izdelava, dobava in montaža obešalnika za garderobo dim.207x114x45 cm. Obešalnik je iz kovinske konstrukcije barvane v NCS S 8005-Y 50 R. na profile so pritrjene kljuke z lesenimi kroglicami, izdelanimi izkrižno lepljenega lesa, premera 4 cm. Podstavek stojala je iz masivne jeklene plošče. Na spodnji strani lošče so v vogalih plastični čepi.\n"]
[null,"kosov",4,"cena / kos",null,{"$f":"C34*E34","v":0}]
[]
[9,"OPR22 - omara za čistila",null,null,null,null,null,{"$f":"F36*G36","v":0}]
[null,"Izdelava, dobava in montaža omare dim.420x180x50 cm, pritrjena konzolno na steno 30 cm od tal. Omara je v celoti (obod krila in notranje police, hrbet..) izdelana iz mediapana barvana NCS S4010-Y50R, lakirana pol mat. Krila omare so poravnana z obodom, tako da je obod viden. Krila omar imajo spodaj rego 1 cm, zgoraj pa tri odprtine na krilo fi 30 mm.\nV notranjosti omare so prestavljive police. Vse krila omar se zaklepajo in se odpirajo samo s ključavnico in ključem. Hrbet masiven iz mediapana zaradi pritrditve. Omara ima na hrbtu distančnik - okvir, globine 10 cm, s katerim je pokrita podkonstrukcija za pritrditev celotne omare na steno. Dimenzije je potrebno pred izdelavo omare preveriti na objektu."]
[null,"kosov",1,"cena / kos",null,{"$f":"C38*E38","v":0}]
[]
[]
["B.","STOLI in MIZE"]
[]
[null,"Splošni opis za stole"]
[null,"Vsi stoli morajo biti oblikovno iz iste družine (jedilni, konferenčni s priključki, barski, pisarniški), noge morajo biti kovinske iz svetlečega kroma, na nogah drsniki za dušenje zvokaoz. primerna kolesa za podlago. Stol mora biti skladen z evropskimi standardi in certifikati, zahtevana garancija znaša 5 let.                                                                        "]
[]
[]
["1","OPR14 - stol kavarniški"]
[null,"Dobava in dostava stola za kavarno. Stol je nakladalni s kovinskimi kromanimi nogami, z nasloni za roke. Barva bela."]
[null,"kosov",20,"cena / kos",null,{"$f":"C49*E49","v":0}]
[]
["2","OPR15 - stol pisarniški"]
[null,"Dobava in dostava  pisarniškega stola. Stol s kovinskimi petkrakimi nogami, na kolesih in tapecirano školjko. Barva črna."]
[null,"kosov",3,"cena / kos",null,{"$f":"C53*E53","v":0}]
[]
["3","OPR16 - stol konferenčni"]
[null,"Dobava in dostava  konferenčnega stola. Stol nalagalni s kovinskimi kromanimi nogami, z nasloni za roke, s školjko iz lepljenega lesa, barva bukev mat finalna obdelava."]
[null,"kosov",25,"cena / kos",null,{"$f":"C57*E57","v":0}]
[]
["4","OPR19 - stol zložljiv vrtni"]
[null,"Dobava in dostava  zložljivega stola - vrtni stol, dim. 42x39x45-82 cm, kovinsko podnožje in lesene sedalna površina in naslon. Stol je zložljiv."]
[null,"kosov",10,"cena / kos",null,{"$f":"C61*E61","v":0}]
[]
["5","OPR20- miza zložljiva vrtna"]
[null,"Dobava in dostava  zložljive mize -vrtnq miza, dim. 57x57x74 cm, kovinsko podnožje in pločevinasta zgornja plošča. Miza je zložljiva."]
[null,"kosov",5,"cena / kos",null,{"$f":"C65*E65","v":0}]
[]
["6","OPR21- predalnik na kolesih "]
[null,"Dobava in dostava kovinskega predalnika na kolesih,dim. 71x71x105 cm, s štirimi predali. v zgornjem predalu vložek za pisala. Barva RAL 9006."]
[null,"kosov",4,"cena / kos",null,{"$f":"C69*E69","v":0}]
[]
[7,"OPR23 - kuhinja katering"]
[null,"Izdelava, dobava in montaža pulta dolžine 320 cm globine 60 cm, višine 91 cm, v celoti narejen iz nerjavnega jekla z dvojnim koritom. Zadnji del zgornje površine pulta ima zavihek na steno višine cca 8 cm.                                                                   Izbrani zvajalec mora narediti tehnološki načrt in ga dati v potrditev. Tehnološki del točilnega pulta mora izbrani izvajalec uskladiti s priključki na objektu. "]
[null,"kosov",1,"cena / kos",null,{"$f":"C73*E73","v":0}]
[]
[]
["C.","ZAVESE"]
[]
[]
["1","OZ2 - dekorativne zavese "]
[null,"zavesa dekorativna in vodilo za zaveso, trakt B nadstropje, viteška dvorana. Palica premera 30 mm v obdelavi nikel mat, na nosilcih 18 cm, 3x na eno okno, dolžine 270 cm in dolžine 450 cm z dekorativno zaveso na vsaki strani okna, ki je šivana iz dveh barv blaga, material trevira CS, izgled saten, teža cca 600 g/m, obešeno na luknje obrobljene kovinskimi obroči (neti), gotova širina 140 cm + 20 cm dvojni rob v drugi barvi samo na eni strani zavese, višina 400 cm.\nMere za vsako okno - zavese preveriti na objektu. Vzorec izbranega dobavitelja potrdi projektant."]
[null,"kosov",4,"cena / kos",null,{"$f":"C81*E81","v":0}]
[]
["2","OZ2a - dekorativne zavese "]
[null,"zavesa dekorativna in vodilo za zaveso, trakt B nadstropje, viteška dvorana. Palica premera 30 mm v obdelavi nikel mat, na nosilcih 18 cm, 3x na eno okno, dolžine 270 cm in dolžine 450 cm z dekorativno zaveso na vsaki strani okna, ki je šivana iz dveh barv blaga, material trevira CS, izgled saten, teža cca 600 g/m, obešeno na luknje obrobljene kovinskimi obroči (neti), gotova širina 140 cm + 20 cm dvojni rob v drugi barvi samo na eni strani zavese, višina 400 cm.\nMere za vsako okno - zavese preveriti na objektu. Vzorec izbranega dobavitelja potrdi projektant."]
[null,"kosov",6,"cena / kos",null,{"$f":"C85*E85","v":0}]
[]
[]
["D.","USMERJENO OZNAČEVANJE"]
[]
[]
["1","Izdelava, dobava in montaža raznih oznak in napisov"]
[null,"razne oznake in napisi, izrezane iz folije, lepljene na zid, panoje in vrata. Upoštevati ves potreben material za izdelavo in pritrditev oznak. Velikost napisov oz. folije do 0,25 m2",20,"cena / kos",null,{"$f":"C92*E92","v":0}]
[null,"kosov"]
[]
["2","Izdelava, dobava in montaža oznak na vratih sanitarij "]
[null,"dim. cca 10x10 cm, izrezane iz folije, lepljene na vrata. Upoštevati ves potreben material za izdelavo in pritrditev oznak.",7,"cena / kos",null,{"$f":"C96*E96","v":0}]
[null,"kosov"]
[]
["3","usmerjevalna tabla"]
[null,"Izdelava, dobava in montaža usmerjevalne table - A stojalo dim. 50x30 cm, izdelane izkrižno lepljene plošče, debeline 40 mm, furnirane v bukovem furnirju. Na furnir je apliciran napis izrezan iz folije. Tabla je samostojača pred objektom.Upoštevati ves potreben material za izdelavo in postavitev table. Vsebino napisa na tabli posreduje naročnik.",2,"cena / kos",null,{"$f":"C100*E100","v":0}]
[null,"kosov"]
[]
[]
["E","DROBNA SANITARNA OPREMA"]
[]
[]
["1","voziček za čistila ",1,"cena / kos",null,{"$f":"C107*E107","v":0}]
[null,"dobava in postavitev vozička za čistila"]
[null,"kosov"]
[]
[]
["F.","RAZNA DELA"]
[]
[]
["1","Prestavitev gasilnih aparatov na novo lokacijo ali v niše pod okni. Upoštevati vsa potrebna dela za demontažo in ponovno montažo gasilnih aparatov."]
[null,"kosov",10,"cena / kos",null,{"$f":"C116*E116","v":0}]
[]
["2","Pleskarska dela. Kitanje bandažiranje in pleskanje sten na mestih prestavitve gasilnih aparatov, popravljanje raznih manjših poškodb in plaskenje raznih cevi.",1,"cena / kos",null,{"$f":"C118*E118","v":0}]
[null,"ocena 500 m2"]
[null,"kosov"]
[]
["3","Fino čiščenje vseh prostorov v objektu.",1,"cena / jkos",null,{"$f":"C122*E122","v":0}]
[null,"ocena 1300 m2"]
[null,"kosov"]
[]
["4","Upoštevati nepredvidena dela v višini 5 odstotkov od vrednosti vseh ostalih postavk v tem popisu",1,"cena / kos",null,{"$f":"C126*E126","v":0}]
[null,"kosov"]